bitfinex/quotes_ETHUSD_20260304
["timestamp","ask_amount","ask_price","bid_price","bid_amount"]
[1772605943264,1.71074561,1971.0,1970.3,1.2688423]
[1772605944882,1.70874561,1970.9,1970.3,1.2688423]
[1772605945283,1.70874561,1970.9,1970.4,1.476]
[1772605947057,1.70874561,1970.7,1970.4,1.476]
[1772605947483,1.70874561,1970.7,1970.1,1.26993268]
[1772605947665,1.70874561,1970.7,1970.1,2.74693268]
[1772605949584,2.9773338,1970.7,1970.1,2.74693268]
[1772605949765,1.70874561,1970.7,1970.1,2.74693268]
[1772605950382,2.97734509,1970.7,1970.1,2.74693268]
[1772605950887,1.70874561,1970.7,1970.2,0.001]
[1772605951187,2.97933545,1970.7,1970.2,0.001]
[1772605951562,1.71074561,1970.7,1970.2,0.001]
[1772605951889,1.27059066,1970.7,1970.1,0.001]
[1772605952184,1.70824561,1970.6,1970.1,1.26996426]
[1772605952486,1.70824561,1970.6,1970.1,0.001]
[1772605953186,1.70824561,1970.6,1970.1,1.26996742]
[1772605954864,1.70824561,1970.6,1970.1,0.001]
[1772605955190,0.002,1970.7,1970.1,1.28924334]
[1772605955490,0.002,1970.8,1970.5,1.28824334]
[1772605955663,0.002,1970.8,1970.5,2.75324334]
[1772605957695,0.002,1970.8,1970.6,1.26864914]
[1772605960696,0.002,1970.8,1970.6,1.471]
[1772605962782,0.002,1970.8,1970.6,2.7396135]
[1772605962981,1.71024561,1970.8,1970.1,0.001]
[1772605964104,1.71024561,1970.8,1970.3,0.001]
[1772605964505,1.70824561,1970.6,1970.3,0.001]
[1772605964801,0.002,1970.8,1970.3,1.28924334]
[1772605964974,0.002,1971.0,1970.5,1.28824334]
[1772605965177,2.97655542,1971.2,1970.5,2.76324334]
[1772605965373,1.70824561,1971.2,1970.5,2.76324334]
[1772605965605,2.48730969,1971.6,1970.9,1.28824334]
[1772605965903,1.70824561,1971.9,1971.1,1.28824334]
[1772605966198,1.70824561,1971.9,1971.3,1.28824334]
[1772605967276,2.97607024,1971.9,1971.4,1.26813432]
[1772605967788,2.97607024,1971.9,1971.3,2.55640035]
[1772605967987,2.97607024,1971.9,1971.1,1.26827776]
[1772605968188,1.70824561,1971.8,1971.3,1.477]
[1772605968502,1.70824561,1971.8,1970.9,1.26841632]
[1772605968806,1.70824561,1971.7,1970.9,2.74541632]
[1772605969306,1.26800568,1971.6,1970.9,4.03365966]
[1772605969503,1.26800568,1971.6,1970.9,2.55665966]
[1772605969688,1.26800568,1971.6,1971.0,1.478]
[1772605970214,1.26800568,1971.6,1970.9,4.03465966]
[1772605971707,1.70824561,1971.6,1970.9,4.03465966]
[1772605973211,1.70824561,1971.6,1970.9,1.479]
[1772605973685,2.9763156,1971.5,1970.9,1.479]
[1772605973886,1.70824561,1971.4,1970.9,1.479]
[1772605974194,1.70824561,1971.4,1970.7,1.26856533]
[1772605974507,1.70824561,1971.4,1970.7,2.74756533]
[1772605975911,2.97642566,1971.4,1970.7,2.74756533]
[1772605976229,1.70824561,1971.4,1970.7,4.03580867]
[1772605976807,2.97638177,1971.4,1971.0,0.001]
[1772605979016,1.26796948,1971.7,1971.1,1.28824334]
[1772605979391,0.002,1971.8,1971.3,1.28824334]
[1772605979682,0.002,1971.8,1971.3,2.76824334]
[1772605980088,0.002,1971.8,1971.4,1.26813432]
[1772605980908,0.002,1972.1,1971.7,1.28824334]
[1772605981113,1.70824561,1972.7,1971.9,1.28824334]
[1772605981314,1.70824561,1972.7,1972.1,1.28824334]
[1772605981712,1.26730085,1972.7,1972.0,1.48]
[1772605981895,1.70824561,1972.6,1972.0,1.48]
[1772605982096,2.97567273,1972.5,1972.0,1.48]
[1772605982292,1.70824561,1972.5,1972.0,2.74773987]
[1772605982515,1.26740773,1972.6,1972.0,2.74773987]
[1772605983011,1.26733805,1972.7,1972.0,2.73973987]
[1772605983205,1.26733805,1972.7,1972.1,1.28824334]
[1772605983711,2.97550397,1972.8,1972.1,1.28824334]
[1772605983915,1.26719961,1972.9,1972.1,1.28824334]
[1772605984111,6.77684746,1973.0,1972.2,1.26761991]
[1772605985091,6.77684746,1973.0,1972.1,2.55587767]
[1772605985515,5.0667379,1973.7,1972.1,2.55587767]
[1772605985516,1.70824561,1973.8,1972.6,1.28824334]
[1772605985706,2.97483796,1973.8,1973.1,1.28824334]
[1772605985912,2.97483796,1973.8,1972.6,1.28824334]
[1772605985913,1.70824561,1973.7,1972.6,1.28824334]
[1772605986104,1.70824561,1973.2,1971.9,1.28824334]
[1772605986412,1.70824561,1973.7,1972.9,1.28824334]
[1772605986612,1.70824561,1973.7,1972.8,1.465]
[1772605987617,1.70824561,1973.7,1972.9,1.28824334]
[1772605988122,1.26672071,1973.6,1972.8,2.73218093]
[1772605988329,1.70824561,1973.5,1972.5,1.28824334]
[1772605988498,1.70824561,1973.5,1972.6,2.66630497]
[1772605990004,1.70824561,1973.5,1972.6,2.66109261]
[1772605990323,1.26684909,1973.4,1972.7,1.408]
[1772605990630,2.97507853,1973.5,1972.7,1.408]
[1772605990817,2.97507853,1973.5,1972.6,1.26209261]
[1772605991013,1.70824561,1973.4,1972.7,1.413]
[1772605991214,1.70824561,1973.4,1972.7,1.415]
[1772605991602,1.70824561,1973.4,1972.7,2.70324334]
[1772605991803,0.002,1973.4,1972.7,2.70324334]
[1772605992015,0.002,1973.4,1972.9,1.28824334]
[1772605992206,0.002,1973.4,1973.0,1.26710593]
[1772605992733,0.002,1973.4,1972.9,2.5553675]
[1772605993527,0.002,1973.4,1972.7,6.35728307]
[1772605993735,1.71024561,1973.4,1973.0,1.428]
[1772605994351,1.26691329,1973.3,1972.7,2.555496]
[1772605994510,1.26691329,1973.3,1972.7,1.26725266]
[1772605994838,1.26691329,1973.3,1972.8,1.432]
[1772605995143,2.9771024,1973.4,1972.9,1.435]
[1772605995437,5.46214174,1973.9,1973.1,1.28824334]
[1772605996228,2.97483205,1973.9,1973.1,1.28824334]
[1772605996439,1.26658644,1973.9,1973.4,1.26684909]
[1772605996799,1.26658644,1973.9,1973.3,2.55511413]
[1772605997009,1.70824561,1973.9,1973.3,2.55515604]
[1772605997613,5.0,1973.5,1973.3,2.55515604]
[1772605997819,1.70824561,1973.9,1973.3,2.55515604]
[1772605999107,2.97477449,1973.9,1973.3,2.55515604]
[1772605999303,1.70824561,1973.9,1973.3,2.55515604]
[1772605999518,1.70824561,1974.1,1973.3,2.55515604]
[1772605999698,1.70824561,1974.1,1973.5,1.28824334]
[1772605999905,1.70824561,1974.1,1973.6,1.45]
[1772606000203,5.06484086,1974.4,1973.7,1.28824334]
[1772606000204,1.70824561,1974.4,1973.7,1.28824334]
[1772606000409,1.70824561,1974.6,1973.9,2.55470889]
[1772606000615,1.70824561,1974.6,1974.1,1.28824334]
[1772606000821,1.26607334,1974.7,1974.1,1.28824334]
[1772606001032,1.26607334,1974.7,1974.2,1.453]
[1772606001242,1.26607334,1974.7,1973.9,2.55470889]
[1772606001445,0.065536,1975.6,1974.5,3.86473002]
[1772606001446,1.26556646,1975.4,1974.5,3.86473002]
[1772606001655,2.97381207,1975.4,1974.7,1.28824334]
[1772606001943,2.97381207,1975.4,1974.6,1.454]
[1772606002321,2.97381207,1975.4,1974.7,2.55425843]
[1772606002713,2.97381207,1975.4,1974.6,2.72003107]
[1772606003645,1.70824561,1975.3,1974.5,1.459]
[1772606004012,1.70824561,1975.3,1974.6,1.28824334]
[1772606004217,1.26556646,1975.4,1974.6,1.28824334]
[1772606004423,1.26556646,1975.4,1974.8,1.28824334]
[1772606005136,1.26556646,1975.4,1974.8,2.55418628]
[1772606005538,2.97381207,1975.4,1974.8,4.01618628]
[1772606005744,0.002,1975.2,1974.8,2.75024334]
[1772606005924,0.002,1975.2,1974.8,4.01619022]
[1772606006130,0.002,1975.2,1974.8,2.75024334]
[1772606006325,1.70824561,1975.1,1974.6,1.463]
[1772606006724,1.70824561,1975.1,1974.3,1.463]
[1772606007037,1.70824561,1974.9,1974.3,2.72923942]
[1772606007343,1.70824561,1974.9,1974.1,1.464]
[1772606007744,2.97598878,1975.2,1974.5,1.28824334]
[1772606007968,0.002,1975.2,1974.7,1.28824334]
[1772606008142,0.002,1975.2,1974.7,2.75324334]
[1772606008523,0.002,1975.2,1974.7,1.465]
[1772606009120,1.71024561,1975.2,1974.5,1.466]
[1772606009774,0.002,1975.3,1974.5,1.466]
[1772606009775,1.26524621,1975.9,1975.1,1.79477399]
[1772606010054,1.26524621,1975.9,1974.8,1.79477399]
[1772606010055,1.70824561,1975.9,1974.8,1.79477399]
[1772606010566,1.70824561,1975.9,1974.9,1.467]
[1772606011159,1.26531025,1975.8,1975.0,1.26582278]
[1772606011323,1.26531025,1975.8,1974.5,6.85932829]
[1772606011324,1.70824561,1975.7,1974.5,6.85932829]
[1772606011644,1.70824561,1975.7,1974.6,2.7340792]
[1772606013166,1.26543834,1975.6,1974.6,2.7340792]
[1772606013367,1.70824561,1975.5,1974.6,2.7340792]
[1772606014767,1.70824561,1975.5,1974.0,1.79477399]
[1772606014954,1.70824561,1975.5,1974.1,6.53634292]
[1772606015363,1.70824561,1975.3,1974.3,1.79477399]
[1772606015868,1.70824561,1975.3,1974.1,6.53634292]
[1772606016079,1.70824561,1975.3,1974.1,5.06534292]
[1772606016255,1.70824561,1975.3,1974.2,1.472]
[1772606016453,1.70824561,1975.3,1974.5,1.79477399]
[1772606017153,1.70824561,1975.3,1974.3,1.79477399]
[1772606017656,1.70824561,1975.1,1974.4,1.26620745]
[1772606017987,1.70824561,1975.1,1974.4,1.473]
[1772606019313,1.70824561,1975.1,1974.4,1.474]
[1772606019608,1.70824561,1975.1,1974.4,0.001]
[1772606019810,1.70824561,1974.9,1974.4,0.001]
[1772606020003,1.70824561,1974.9,1974.3,0.001]
[1772606021789,1.70774561,1974.7,1974.3,0.001]
[1772606024208,2.97382481,1974.6,1974.3,0.001]
[1772606024412,1.70774561,1974.5,1974.3,0.001]
[1772606024801,1.70774561,1974.5,1974.1,0.001]
[1772606026516,2.97394522,1974.5,1974.1,0.001]
[1772606026916,1.70774561,1974.4,1974.1,0.001]
[1772606028116,1.70774561,1974.6,1973.9,1.26659187]
[1772606028293,1.70774561,1974.5,1973.2,1.26697749]
[1772606028617,1.70774561,1974.3,1973.3,1.79477399]
[1772606028789,1.70774561,1974.6,1973.6,1.79477399]
[1772606028991,2.97382481,1974.6,1973.7,1.26659187]
[1772606029203,2.97382481,1974.6,1973.8,1.461]
[1772606030619,2.97382481,1974.6,1973.9,1.26652819]
[1772606030911,1.70774561,1974.5,1973.7,2.53320029]
[1772606031095,1.70774561,1974.5,1974.0,1.462]
[1772606031697,1.70774561,1974.5,1973.8,1.26659187]
[1772606031898,1.70774561,1974.5,1973.9,2.72859187]
[1772606032109,1.70774561,1974.5,1974.0,1.462]
[1772606032501,2.9738922,1974.5,1973.7,5.06636943]
[1772606032697,1.70774561,1974.5,1974.1,1.463]
[1772606033005,5.0,1974.7,1974.1,1.463]
[1772606033211,5.0,1974.7,1974.2,1.26659187]
[1772606033687,0.002,1974.5,1974.3,1.463]
[1772606034518,0.002,1974.5,1974.3,2.7292648]
[1772606034895,0.002,1974.5,1974.3,1.2662648]
[1772606035097,0.002,1974.5,1974.4,1.464]
[1772606035316,0.002,1974.5,1974.4,2.73059187]
[1772606035512,0.002,1974.6,1974.4,2.73059187]
[1772606035707,0.002,1974.6,1974.5,1.26659187]
[1772606036730,2.97335759,1975.4,1974.6,1.2660792]
[1772606036891,1.70774561,1975.4,1974.6,2.53267107]
[1772606037216,1.70774561,1975.7,1974.8,1.79477399]
[1772606037610,2.97303114,1975.9,1974.9,1.26659187]
[1772606037814,1.26528553,1975.9,1975.0,1.464]
[1772606038037,1.70774561,1975.8,1975.0,1.464]
[1772606038203,1.70774561,1975.8,1975.1,1.26659187]
[1772606038403,1.70774561,1975.8,1975.1,1.464]
[1772606038603,1.70774561,1975.6,1975.2,1.465]
[1772606038805,1.70774561,1975.6,1974.8,5.06370974]
[1772606038806,1.70774561,1975.6,1975.3,1.465]
[1772606039005,1.70774561,1975.6,1975.0,1.465]
[1772606039622,1.70774561,1975.6,1974.6,5.06417305]
[1772606039919,1.70774561,1975.6,1974.7,1.465]
[1772606040119,1.70774561,1975.6,1974.7,1.26659187]
[1772606040326,1.70774561,1975.6,1974.8,1.465]
[1772606040923,1.70774561,1975.4,1974.9,2.73159187]
[1772606041126,1.70774561,1975.4,1974.8,1.26659187]
[1772606041297,1.70774561,1975.4,1974.7,1.26659187]
[1772606041496,1.70774561,1975.4,1974.6,1.26659187]
[1772606042126,1.70774561,1975.4,1974.6,2.73159187]
[1772606042326,1.70774561,1975.4,1974.6,1.26659187]
[1772606042538,1.70774561,1975.4,1974.6,2.73159187]
[1772606043030,1.70774561,1975.2,1974.7,1.26659187]
[1772606043630,1.70774561,1975.2,1974.8,1.26659187]
[1772606043930,1.70774561,1975.2,1974.7,1.26659187]
[1772606044328,1.70774561,1975.2,1974.1,1.26639987]
[1772606044530,1.70774561,1975.2,1974.2,1.465]
[1772606045033,2.9735043,1975.1,1974.3,1.26627158]
[1772606045236,2.9735043,1975.1,1974.4,1.465]
[1772606045434,1.70774561,1975.1,1974.4,2.73159187]
[1772606045616,1.70774561,1975.1,1974.5,1.26659187]
[1772606046019,1.70774561,1975.1,1974.6,2.73159187]
[1772606046218,1.70774561,1975.1,1974.6,1.465]
[1772606046435,1.70774561,1975.1,1974.4,1.465]
[1772606046639,1.70774561,1975.1,1974.3,1.465]
[1772606047435,1.70774561,1974.9,1974.4,1.1125524]
[1772606047740,1.70774561,1974.9,1973.9,0.001]
[1772606048051,1.70774561,1974.9,1974.0,1.465]
[1772606048220,1.70774561,1974.9,1974.6,0.001]
[1772606048552,1.70774561,1974.9,1974.0,1.465]
[1772606048843,1.70774561,1974.9,1974.5,0.001]
[1772606049979,1.26595098,1974.8,1974.5,0.001]
[1772606050169,1.54266438,1974.7,1974.5,0.001]
[1772606051080,1.54266438,1974.7,1974.3,0.001]
[1772606052091,2.80874358,1974.6,1974.3,0.001]
[1772606052687,5.06476856,1975.3,1974.3,0.91297037]
[1772606052688,1.26766739,1975.3,1974.3,0.91297037]
[1772606052976,0.002,1975.3,1974.6,0.91197037]
[1772606053972,1.26764833,1975.3,1974.7,1.463]
[1772606054160,1.26764833,1975.3,1974.6,2.17801745]
[1772606054364,1.54266438,1975.2,1974.6,1.463]
[1772606055386,0.002,1975.3,1974.7,0.89966557]
[1772606055587,0.002,1975.3,1974.8,1.463]
[1772606056785,0.002,1975.3,1974.8,2.72892339]
[1772606057501,0.002,1975.3,1974.8,3.62043244]
[1772606060100,5.06124101,1976.1,1974.8,3.62043244]
[1772606060101,1.57936607,1976.5,1975.3,0.88170523]
[1772606060301,1.57936607,1976.5,1975.5,0.87766576]
[1772606060504,1.57936607,1976.2,1974.9,0.87766576]
[1772606060672,1.57936607,1976.2,1975.2,0.87766576]
[1772606061688,5.0,1975.3,1975.2,0.87766576]
[1772606062005,1.57936607,1976.2,1975.2,2.37220061]
[1772606062206,1.57936607,1976.0,1975.3,3.63783114]
[1772606062503,1.26511816,1976.1,1975.4,1.05039035]
[1772606063288,1.26511816,1976.1,1975.5,1.462]
[1772606063488,1.26711816,1976.1,1975.5,1.462]
[1772606063985,0.002,1976.1,1975.5,1.462]
[1772606064187,1.58136607,1976.1,1975.2,1.26569461]
[1772606064398,1.58136607,1976.1,1975.3,2.50344407]
[1772606064602,0.002,1976.1,1975.4,1.04144407]
[1772606065717,1.58136607,1976.1,1975.5,1.453]
[1772606065895,1.58136607,1976.1,1975.4,1.453]
[1772606066091,1.57936607,1975.9,1975.2,1.454]
[1772606066519,1.57936607,1975.9,1975.1,1.26575491]
[1772606066820,1.57936607,1975.9,1975.2,1.455]
[1772606067718,1.57936607,1975.9,1975.1,1.26575491]
[1772606067917,1.57936607,1975.9,1975.3,1.456]
[1772606068095,1.26531025,1975.8,1975.1,1.26575491]
[1772606068293,1.26531025,1975.8,1975.2,1.457]
[1772606069107,1.26714392,1976.1,1975.3,1.02367273]
[1772606069621,2.84650999,1976.1,1975.3,1.02367273]
[1772606070200,0.002,1976.1,1975.5,1.01484766]
[1772606070400,1.57936607,1976.6,1975.6,1.01484766]
[1772606070618,1.57936607,1976.6,1975.9,2.29527802]
[1772606070808,1.26467017,1976.8,1976.0,2.47484766]
[1772606071008,11.42024022,1978.5,1976.0,2.47484766]
[1772606071009,1.57936607,1977.4,1976.5,1.28043036]
[1772606071212,1.57936607,1977.3,1976.6,1.457]
[1772606071403,1.57936607,1977.3,1976.6,1.453]
[1772606071804,1.57936607,1977.3,1976.5,1.454]
[1772606072018,1.57936607,1977.3,1976.1,1.01050754]
[1772606072019,1.57936607,1977.3,1976.1,1.452]
[1772606072332,1.57936607,1977.3,1976.2,1.00612463]
[1772606072333,1.57936607,1977.1,1976.2,1.00612463]
[1772606072533,1.57936607,1977.1,1976.3,1.28043036]
[1772606072729,1.57936607,1977.1,1976.3,2.28655499]
[1772606073113,1.57936607,1977.1,1976.3,1.00612463]
[1772606073320,1.57936607,1977.1,1976.2,1.454]
[1772606073516,1.57936607,1977.0,1976.2,1.454]
[1772606073741,1.57936607,1977.0,1976.1,1.455]
[1772606074051,1.57936607,1977.0,1976.0,2.28218189]
[1772606074247,1.2646062,1976.9,1976.1,1.455]
[1772606074417,1.57936607,1976.8,1976.0,2.54559876]
[1772606074619,1.57936607,1976.8,1975.8,1.26527015]
[1772606074822,1.57936607,1976.8,1975.8,2.26265916]
[1772606075323,1.57936607,1976.8,1975.9,1.457]
[1772606076355,2.84410022,1976.7,1975.9,1.458]
[1772606076553,2.84410022,1976.7,1975.9,1.459]
[1772606076754,1.57936607,1976.6,1975.9,1.459]
[1772606077549,1.26473415,1976.7,1976.0,0.98436883]
[1772606078056,1.26447827,1977.1,1976.3,1.28043036]
[1772606078265,1.26447827,1977.1,1976.3,2.26047783]
[1772606078436,1.26447827,1977.1,1976.4,1.26492612]
[1772606079139,2.84384434,1977.1,1976.3,2.24498751]
[1772606079327,1.57936607,1977.0,1976.0,2.24189885]
[1772606079527,1.57936607,1977.0,1976.2,2.25616765]
[1772606079862,1.26447827,1977.1,1976.3,0.97573729]
[1772606080454,5.05976249,1977.2,1976.4,1.26492612]
[1772606080660,6.63912856,1977.2,1976.5,1.463]
[1772606081028,1.57936607,1977.1,1976.0,2.23758636]
[1772606081274,1.57936607,1977.1,1976.2,1.463]
[1772606081756,1.57936607,1977.1,1976.0,3.51801672]
[1772606081966,1.57936607,1977.1,1976.1,1.464]
[1772606082338,1.57936607,1977.1,1976.1,2.42492912]
[1772606082538,1.57936607,1976.9,1976.1,2.72911658]
[1772606083535,1.26454223,1977.0,1976.3,0.9557077]
[1772606083735,2.8439083,1977.0,1976.3,1.446]
[1772606083966,2.8429083,1977.0,1976.3,1.446]
[1772606084173,2.8429083,1977.0,1976.3,1.445]
[1772606084664,1.57936607,1976.9,1976.3,1.465]
[1772606085472,0.002,1977.2,1976.5,0.9459548]
[1772606085764,0.002,1977.2,1976.2,1.26502283]
[1772606085765,0.002,1977.2,1976.6,3.69238516]
[1772606085975,0.002,1977.2,1976.7,2.22638516]
[1772606086175,0.002,1977.2,1976.7,0.9459548]
[1772606086470,0.89191985,1977.5,1977.1,0.94169545]
[1772606086678,0.83887341,1977.5,1977.2,1.26441432]
[1772606087187,0.003,1978.2,1977.4,0.93814315]
[1772606087384,1.26579285,1978.2,1977.4,0.93814315]
[1772606087585,1.26579285,1978.2,1977.5,1.467]
[1772606087873,2.84515892,1978.2,1977.6,1.468]
[1772606088079,2.84515892,1978.2,1977.4,0.93814315]
[1772606088080,1.26578794,1978.2,1977.4,0.93814315]
[1772606088379,1.47648429,1978.1,1977.5,1.468]
[1772606088584,0.002,1978.2,1977.5,2.7322157]
[1772606088753,0.002,1978.2,1977.5,3.68870961]
[1772606088946,0.002,1978.2,1977.6,0.95649391]
[1772606089152,0.002,1978.2,1977.7,1.469]
[1772606089882,1.47648429,1979.5,1978.2,0.95134898]
[1772606090082,1.47648429,1979.5,1978.4,1.28043036]
[1772606090388,1.47648429,1979.5,1978.5,1.469]
[1772606090560,2.73928459,1979.8,1978.8,2.75074465]
[1772606090884,1.47648429,1979.7,1978.0,1.48739392]
[1772606091081,1.47648429,1979.7,1978.3,1.48739392]
[1772606091082,1.47648429,1979.4,1978.3,1.48739392]
[1772606091252,1.47648429,1979.4,1978.4,2.73743036]
[1772606091453,1.47648429,1979.4,1978.5,1.458]
[1772606091673,1.47648429,1979.4,1978.3,1.48739392]
[1772606091847,1.47648429,1979.4,1978.6,1.459]
[1772606092173,1.47648429,1979.7,1978.7,1.46]
[1772606092573,3.80001591,1980.0,1978.8,4.03121623]
[1772606092574,3.99606984,1980.0,1978.8,4.03121623]
[1772606092879,1.26250082,1980.2,1979.2,1.28043036]
[1772606093056,1.26250082,1980.2,1979.3,1.461]
[1772606093379,1.47648429,1980.1,1979.4,1.462]
[1772606093568,1.47648429,1980.1,1978.8,4.03121623]
[1772606093569,2.75691465,1980.1,1978.8,4.03121623]
[1772606093770,2.75691465,1980.1,1978.7,5.05356781]
[1772606093771,1.47648429,1979.8,1978.9,1.463]
[1772606094186,1.47648429,1979.8,1978.5,1.48739392]
[1772606094385,3.86381875,1979.9,1978.2,2.95139392]
[1772606094386,1.47648429,1979.3,1978.2,2.95139392]
[1772606094619,1.26313662,1979.2,1978.4,1.26364739]
[1772606095002,2.73958812,1979.3,1978.5,1.453]
[1772606095319,2.73958812,1979.3,1978.6,1.453]
[1772606095503,1.2630446,1979.4,1978.6,1.453]
[1772606095906,1.2630446,1979.4,1978.5,1.28043036]
[1772606096087,1.26298727,1979.5,1978.6,1.456]
[1772606096286,2.73940288,1979.6,1978.7,1.28043036]
[1772606096806,2.73940288,1979.6,1978.8,1.457]
[1772606097189,1.47648429,1979.6,1978.8,1.457]
[1772606097391,1.26279529,1979.8,1978.8,2.94439392]
[1772606097616,2.73927958,1979.8,1978.9,1.459]
[1772606097997,1.47648429,1979.7,1978.5,2.7509387]
[1772606098323,1.47648429,1980.4,1978.7,0.14948499]
[1772606098619,1.26243498,1980.3,1979.4,2.76782428]
[1772606098788,1.26243498,1980.3,1979.4,1.48739392]
[1772606098988,1.26243498,1980.3,1979.3,1.462]
[1772606098989,1.47648429,1980.1,1979.3,1.462]
[1772606099191,1.47648429,1980.1,1979.0,2.72620982]
[1772606099815,1.47648429,1980.1,1979.0,2.75060374]
[1772606100020,1.47648429,1980.1,1979.1,1.465]
[1772606100217,1.47648429,1980.0,1978.9,1.2633179]
[1772606100523,1.47648429,1980.0,1978.9,2.54374826]
[1772606100735,4.05987268,1980.6,1979.6,1.28043036]
[1772606100929,2.73848269,1981.0,1980.0,1.28043036]
[1772606101127,1.47648429,1981.3,1980.1,2.95439392]
[1772606101328,2.75691465,1981.2,1980.0,3.99986127]
[1772606101638,1.47648429,1981.2,1980.1,1.28043036]
[1772606101810,1.47648429,1981.2,1980.1,4.22082428]
[1772606102015,1.47648429,1981.2,1980.1,2.76782428]
[1772606102219,1.47648429,1981.2,1980.2,1.455]
[1772606102414,1.47648429,1980.8,1979.8,1.48739392]
[1772606102636,2.73863567,1980.8,1979.7,2.54324795]
[1772606102810,2.73843804,1981.1,1980.1,1.28043036]
[1772606103009,2.73843804,1981.1,1980.1,2.76782428]
[1772606103230,2.73843804,1981.1,1980.1,1.48739392]
[1772606103536,2.73843804,1981.1,1980.2,1.459]
[1772606103732,2.73841799,1981.1,1980.2,1.459]
[1772606104340,2.73841799,1981.1,1980.1,1.48739392]
[1772606104522,2.75691465,1981.0,1980.1,1.462]
[1772606104723,1.2620526,1980.9,1979.9,1.26269003]
[1772606104920,1.47648429,1981.0,1980.2,1.28043036]
[1772606105122,1.26190019,1981.2,1980.2,2.76782428]
[1772606105341,1.47648429,1981.1,1980.3,1.464]
[1772606105849,1.47648429,1981.1,1980.0,1.465]
[1772606106050,1.47648429,1981.1,1980.0,4.23282428]
[1772606106220,1.47648429,1981.1,1980.1,1.466]
[1772606106546,1.47848429,1981.1,1980.2,1.467]
[1772606106723,1.47848429,1981.1,1980.2,1.28043036]
[1772606106922,2.74044635,1981.1,1980.3,2.73038839]
[1772606107144,1.47848429,1981.1,1980.3,2.73038839]
[1772606107446,1.2639331,1981.1,1980.3,1.26238839]
[1772606107840,1.47648429,1981.0,1980.2,1.26245689]
[1772606108135,1.47648429,1981.0,1980.3,1.47]
[1772606108838,1.47648429,1981.0,1980.2,2.54288725]
[1772606108839,0.002,1981.1,1980.6,1.28043036]
[1772606109048,1.47648429,1981.6,1980.6,2.76782428]
[1772606109251,2.7379001,1981.9,1980.8,1.48739392]
[1772606109407,2.7379001,1981.9,1980.9,1.472]
[1772606109629,2.7379001,1981.9,1980.8,2.76782428]
[1772606109853,2.7379001,1981.9,1980.9,1.473]
[1772606110626,2.7379001,1981.9,1980.8,1.48739392]
[1772606110627,2.58338839,1983.5,1981.9,1.48739392]
[1772606110827,2.58338839,1983.5,1981.5,2.56086072]
[1772606110828,5.04161471,1983.5,1982.4,1.28043036]
[1772606111156,6.5172397,1983.9,1983.0,1.28043036]
[1772606111330,6.5172397,1983.9,1982.9,1.469]
[1772606111649,6.5172397,1983.9,1982.1,6.73012116]
[1772606111650,1.47648429,1983.8,1982.1,6.73012116]
[1772606111951,1.47648429,1983.8,1982.2,1.47]
[1772606112274,1.47648429,1983.8,1981.4,5.26194777]
[1772606112275,1.47648429,1983.6,1981.9,1.48739392]
[1772606112426,6.5172397,1983.9,1982.6,2.76782428]
[1772606112626,6.5172397,1983.9,1982.8,1.48739392]
[1772606112823,2.73700967,1983.3,1982.2,6.50809586]
[1772606113223,2.73700967,1983.3,1982.2,5.05409586]
[1772606113457,2.73700967,1983.3,1982.3,1.456]
[1772606113666,2.73700967,1983.3,1982.2,3.77368362]
[1772606114032,1.47648429,1983.7,1982.4,1.28043036]
[1772606114336,1.47648429,1983.6,1982.5,2.94639392]
[1772606114532,1.47648429,1983.6,1982.6,1.28043036]
[1772606114733,1.47648429,1983.6,1982.7,1.46]
[1772606115059,1.47648429,1983.6,1982.1,5.0448996]
[1772606115060,1.47648429,1983.2,1981.9,1.28043036]
[1772606115757,1.47648429,1983.4,1982.4,1.28043036]
[1772606115963,2.73673551,1983.8,1982.6,1.28043036]
[1772606116258,2.73673551,1983.8,1982.6,1.48739392]
[1772606116462,2.73673551,1983.8,1982.7,1.462]
[1772606116630,1.28043036,1983.7,1982.7,1.454]
[1772606116835,2.75691465,1983.7,1982.3,2.76782428]
[1772606117041,5.04083072,1983.9,1982.5,1.28043036]
[1772606117042,1.47648429,1983.5,1982.5,1.28043036]
[1772606117442,5.04093004,1983.8,1982.7,1.28043036]
[1772606117644,2.73669197,1983.8,1982.5,2.76782428]
[1772606117875,1.47648429,1983.7,1982.5,2.76782428]
[1772606118147,1.47648429,1983.7,1982.6,1.453]
[1772606118571,2.75691465,1983.7,1982.5,2.76782428]
[1772606118768,2.75691465,1983.7,1982.6,1.456]
[1772606118955,1.26039828,1983.5,1982.6,2.71797044]
[1772606119285,2.81129212,1983.6,1982.6,2.71797044]
[1772606119468,2.81129212,1983.6,1982.7,1.459]
[1772606119849,2.81129212,1983.6,1982.7,1.46]
[1772606120043,1.57165892,1983.5,1982.2,5.32001514]
[1772606120378,0.002,1983.4,1982.4,2.80754779]
[1772606120564,0.002,1983.4,1982.4,1.52711743]
[1772606120781,1.57365892,1983.4,1982.3,1.26116127]
[1772606120970,1.26052538,1983.3,1982.4,2.72408368]
[1772606121171,1.26250234,1983.4,1982.4,5.53163147]
[1772606121363,1.26250234,1983.4,1982.5,1.465]
[1772606121673,1.57165892,1983.3,1982.4,1.465]
[1772606121847,1.57165892,1983.2,1982.1,4.06880938]
[1772606122054,1.57165892,1983.2,1982.3,1.28043036]
[1772606122477,1.57165892,1983.2,1982.2,1.468]
[1772606122774,1.57165892,1983.2,1982.3,1.469]
[1772606122975,2.83226142,1983.2,1982.3,1.26116127]
[1772606123279,2.83226142,1983.2,1982.4,1.47]
[1772606123580,1.2606025,1983.2,1982.0,2.78846959]
[1772606123766,1.57165892,1982.9,1981.9,2.73236648]
[1772606124072,1.57165892,1982.9,1981.9,5.53991427]
[1772606124273,2.85208928,1982.9,1981.9,2.78848391]
[1772606124666,1.57165892,1982.6,1981.6,1.26156771]
[1772606124870,1.57165892,1982.6,1981.5,4.0160543]
[1772606125072,1.26103404,1982.5,1981.5,4.0160543]
[1772606125313,1.57165892,1982.4,1981.4,2.73668771]
[1772606125607,1.57165892,1982.4,1981.5,1.476]
[1772606125791,1.57165892,1982.3,1981.4,1.26168771]
[1772606126104,1.57165892,1982.3,1981.4,1.476]
[1772606126286,1.57165892,1982.3,1981.4,1.477]
[1772606126468,1.57165892,1982.3,1981.1,2.54230578]
[1772606126671,1.57165892,1982.3,1981.1,1.26187542]
[1772606127070,2.83288382,1982.2,1981.2,1.479]
[1772606127373,2.85208928,1982.1,1981.2,1.479]